bitfinex-derivatives/quotes_ETHF0:USTF0_20250607
["timestamp","ask_amount","ask_price","bid_price","bid_amount"]
[1749291768194,0.80112,2495.2,2495.1,4.74]
[1749291768390,0.80117,2495.1,2495.0,5.54116]
[1749291768699,2.17164,2495.2,2495.1,0.80115]
[1749291769900,1.3705,2495.2,2495.1,0.80115]
[1749291770505,4.5783,2495.2,2494.9,0.0060119]
[1749291770795,0.80116,2495.1,2495.0,0.80117]
[1749291771391,0.80118,2495.0,2494.9,0.0060119]
[1749291771596,0.80118,2495.0,2494.9,0.8072219]
[1749291771991,0.80118,2495.0,2494.9,0.0060119]
[1749291772688,0.80118,2495.0,2494.9,0.8072219]
[1749291774096,0.80118,2495.0,2494.9,0.0060119]
[1749291774791,0.80118,2495.0,2494.9,0.8072219]
[1749291776702,0.80118,2495.0,2494.9,0.0060119]
[1749291777900,0.80118,2495.0,2494.9,0.8072219]
[1749291778401,0.80117,2495.1,2495.0,0.80116]
[1749291779305,2.17163,2495.2,2495.1,0.80115]
[1749291780305,1.3705,2495.2,2495.1,0.80115]
[1749291780605,2.17161,2495.2,2495.1,0.80115]
[1749291780906,1.3705,2495.2,2495.1,0.80115]
[1749291781108,2.17161,2495.2,2495.1,0.80115]
[1749291782008,1.48711,2495.2,2495.1,0.80115]
[1749291784801,0.80111,2495.2,2495.1,0.80115]
[1749291785002,0.80111,2495.2,2495.1,2.08375]
[1749291785503,0.87002172,2495.2,2495.1,2.08375]
[1749291786604,0.87002172,2495.2,2495.1,1.2826]
[1749291786904,0.80118,2495.0,2494.9,0.8072019]
[1749291787305,0.80118,2495.0,2494.9,0.0060119]
[1749291788513,1.49078,2495.0,2494.9,0.0060119]
[1749291789308,1.49078,2495.0,2494.9,0.8072219]
[1749291789501,1.49078,2495.0,2494.9,0.0060119]
[1749291790309,1.49078,2495.0,2494.9,0.8072219]
[1749291790706,1.49078,2495.0,2494.9,0.0060119]
[1749291792107,2.87408,2495.0,2494.9,0.0060119]
[1749291792304,3.93218786,2495.0,2494.9,0.0060119]
[1749291799413,0.80134,2494.5,2494.4,4.741]
[1749291799616,4.00914,2494.5,2494.4,4.741]
[1749291800212,0.80134,2494.5,2494.4,0.80137]
[1749291801217,0.70467451,2494.7,2494.2,8.7519619]
[1749291801417,1.50596451,2494.7,2494.6,0.80131]
[1749291802123,1.50596451,2494.7,2494.5,0.80131]
[1749291802124,0.80133,2494.6,2494.5,0.80131]
[1749291802717,0.70467451,2494.7,2494.3,1.313]
[1749291802921,0.80134,2494.6,2494.5,0.80132]
[1749291803819,2.70788451,2494.7,2494.3,6.054]
[1749291804022,0.80134,2494.5,2494.4,2.11436]
[1749291804321,0.80133,2494.6,2494.5,0.80132]
[1749291805022,0.80134,2494.5,2494.4,1.313]
[1749291805219,0.8014,2494.3,2494.2,1.4958319]
[1749291805419,0.8014,2494.3,2494.2,7.5112319]
[1749291806111,1.4027,2494.3,2494.2,7.5112319]
[1749291806315,0.6013,2494.3,2494.2,7.5112319]
[1749291814126,0.00597451,2494.7,2494.6,0.80131]
[1749291814327,0.00597451,2494.7,2494.6,4.00911]
[1749291814627,0.00597451,2494.7,2494.6,8.75111]
[1749291814823,0.00597451,2494.7,2494.6,10.74681]
[1749291815722,0.00597451,2494.7,2494.6,7.53901]
[1749291818229,0.00597451,2494.7,2494.6,7.53801]
[1749291818434,0.00597451,2494.7,2494.6,2.79701]
[1749291818625,0.00597451,2494.7,2494.6,7.53801]
[1749291819930,0.00597451,2494.7,2494.6,2.79701]
[1749291820231,0.00597451,2494.7,2494.6,7.53801]
[1749291820529,0.00597451,2494.7,2494.6,2.79701]
[1749291820732,0.00597451,2494.7,2494.6,7.53801]
[1749291830136,0.07488623,2494.7,2494.6,7.53801]
[1749291831847,0.07488623,2494.7,2494.6,15.74581]
[1749291834042,0.07488623,2494.7,2494.6,4.00911]
[1749291834249,0.07488623,2494.7,2494.6,8.74911]
[1749291834847,0.07488623,2494.7,2494.6,10.10181]
[1749291836044,6.23e-06,2494.7,2494.6,15.10181]
[1749291836246,0.6328,2495.4,2495.3,0.80108]
[1749291836445,1.70711766,2495.4,2495.3,0.80108]
[1749291836747,1.286,2495.4,2495.3,0.80108]
[1749291840449,0.6532,2495.4,2495.3,0.80108]
[1749291841048,0.6532,2495.4,2495.3,2.78618]
[1749291843753,2.72164,2495.8,2495.7,0.80095]
[1749291843954,2.97690726,2495.8,2495.7,0.80095]
[1749291844247,1.9207,2495.8,2495.7,0.80095]
[1749291844447,0.6489,2495.8,2495.7,0.80095]
[1749291844849,0.6489,2495.8,2495.6,0.80097]
[1749291845057,1.988,2495.8,2495.5,0.0060119]
[1749291845247,0.80099,2495.6,2495.5,0.0060119]
[1749291845650,2.79929,2495.6,2495.5,0.0060119]
[1749291845946,3.85503943,2495.6,2495.5,0.8070319]
[1749291846253,3.85503943,2495.6,2495.5,0.0060119]
[1749291847547,8.85503943,2495.6,2495.5,0.0060119]
[1749291847747,2.00255,2495.5,2495.0,4.739]
[1749291847946,2.00255,2495.5,2495.1,0.80114]
[1749291847947,4.00893,2495.2,2495.1,0.80114]
[1749291849247,5.29423,2495.2,2495.1,0.80114]
[1749291849655,5.29423,2495.2,2495.0,0.80116]
[1749291849852,1.3964,2495.1,2495.0,0.80116]
[1749291850547,2.19755,2495.1,2495.0,0.80116]
[1749291850854,1.3964,2495.1,2495.0,0.80116]
[1749291851048,2.0302,2495.1,2495.0,0.80116]
[1749291852250,0.6338,2495.1,2495.0,0.80116]
[1749291855154,0.6338,2495.1,2494.9,0.8072019]
[1749291855359,2.82345,2495.1,2495.0,0.80118]
[1749291855544,0.80118,2495.0,2494.9,4.7460119]
[1749291855857,1.3885,2495.0,2494.9,5.5472219]
[1749291857455,0.6338,2495.1,2495.0,0.80118]
[1749291858752,0.6338,2495.1,2494.9,0.0060119]
[1749291859046,1.2829,2495.0,2494.9,0.8072219]
[1749291859950,0.6338,2495.1,2495.0,0.80118]
[1749291861249,0.6338,2495.1,2495.0,2.09608]
[1749291865558,0.6338,2495.1,2495.0,0.80118]
[1749291866760,0.6506,2495.3,2495.2,0.80111]
[1749291866961,3.1763264,2495.3,2495.2,0.80111]
[1749291867960,0.80113,2495.2,2495.1,0.80112]
[1749291868266,0.80117,2495.1,2495.0,5.54416]
[1749291868564,0.80117,2495.1,2495.0,0.80116]
[1749291868760,0.80118,2495.0,2494.9,0.8072019]
[1749291869060,0.80115,2495.1,2495.0,0.80115]
[1749291869468,2.10764,2495.2,2495.1,0.80115]
[1749291871569,3.16456541,2495.2,2495.1,0.80115]
[1749291872469,0.80116,2495.1,2495.0,0.80115]
[1749291873365,0.80118,2495.0,2494.9,0.0060119]
[1749291873573,5.77530108,2495.0,2494.9,0.0060119]
[1749291873769,7.10080108,2495.0,2494.9,0.0060119]
[1749291874767,7.03188936,2495.0,2494.9,0.0060119]
[1749291878675,5.97468,2495.0,2494.9,0.0060119]
[1749291878877,7.03175225,2495.0,2494.9,0.0060119]
[1749291884178,7.031285,2495.0,2494.9,0.0060119]
[1749291884782,5.705785,2495.0,2494.9,0.8072219]
[1749291885084,1.696805,2495.0,2494.9,0.8072219]
[1749291886384,2.497985,2495.0,2494.9,0.8072219]
[1749291886986,2.49791757,2495.0,2494.9,0.8072219]
[1749291887181,1.44138,2495.0,2494.9,0.8072219]
[1749291887988,2.49793938,2495.0,2494.9,0.8072219]
[1749291889388,2.49793938,2495.0,2494.9,0.0060119]
[1749291890788,2.5668511,2495.0,2494.9,0.0060119]
[1749291894093,2.5668511,2495.0,2494.9,1.2730119]
[1749291895193,2.5668511,2495.0,2494.9,0.0060119]
[1749291903197,5.7746511,2495.0,2494.9,0.0060119]
[1749291907403,14.7134711,2495.0,2493.8,31.45739373]
[1749291907609,0.80152,2494.0,2493.9,7.3825]
[1749291907807,0.80152,2494.0,2493.9,1.3377]
[1749291908114,0.80152,2494.0,2493.9,6.0777]
[1749291908407,0.80149,2494.1,2494.0,0.80149]
[1749291908594,1.48376,2494.2,2494.1,0.80147]
[1749291911210,1.48373,2494.2,2494.1,0.80147]
[1749291913907,0.80147,2494.1,2494.0,0.80149]
[1749291914702,0.6823,2494.2,2493.9,6.0777]
[1749291914908,0.80148,2494.1,2494.0,0.80149]
[1749291917117,0.8015,2494.0,2493.9,1.3377]
[1749291917316,0.80153,2493.9,2493.8,25.03756]
[1749291917614,0.80153,2493.9,2493.8,29.77856]
[1749291917813,0.80152,2494.0,2493.9,0.80152]
[1749291919014,0.80153,2493.9,2493.8,5.54254]
[1749291919813,0.80153,2493.9,2493.8,5.54253]
[1749291920011,0.80152,2494.0,2493.9,0.80151]
[1749291920411,0.8075019,2494.1,2494.0,0.8015]
[1749291921720,0.80152,2494.0,2493.9,0.80151]
[1749291922024,0.8075119,2494.1,2494.0,0.8015]
[1749291922621,0.80152,2494.0,2493.9,0.80151]
[1749291923220,0.87043172,2494.0,2493.9,0.80151]
[1749291925622,0.87043172,2494.0,2493.9,2.09871]
[1749291926426,0.87043172,2494.0,2493.9,0.80151]
[1749291926622,0.80153,2493.9,2493.8,5.54154]
[1749291926828,0.80153,2493.9,2493.8,6.85944]
[1749291927026,1.44703,2493.9,2493.8,6.85944]
[1749291927417,1.44703,2493.9,2493.8,2.11944]
[1749291929827,0.06891172,2494.0,2493.9,0.80153]
[1749291930030,0.06891172,2494.0,2493.9,2.17563]
[1749291946339,0.06891172,2494.0,2493.9,5.54153]
[1749291946541,0.71171172,2494.0,2493.9,5.54153]
[1749291946734,0.71171172,2494.0,2493.7,3.2138119]
[1749291946929,0.71171172,2494.0,2493.9,0.80153]
[1749291948340,1.51321172,2494.0,2493.9,0.80153]
[1749291948641,0.71171172,2494.0,2493.9,0.80153]
[1749291949838,1.51321172,2494.0,2493.9,0.80153]
[1749291950033,0.71171172,2494.0,2493.9,0.80153]
[1749291956644,0.06891172,2494.0,2493.9,0.80153]
[1749291956843,0.06891172,2494.0,2493.9,2.84763]
[1749291960859,0.06891172,2494.0,2493.9,2.15103]
[1749291963452,0.06891172,2494.0,2493.9,0.80153]
[1749291970265,0.06891172,2494.0,2493.9,4.00933]
[1749291975071,0.06891172,2494.0,2493.9,5.29463]
[1749291979468,0.06891172,2494.0,2493.9,4.00933]
[1749291979674,0.87041172,2494.0,2493.9,3.2078]
[1749291979968,0.80153,2493.9,2493.8,0.80156]
[1749291980162,1.48983,2493.9,2493.8,0.80156]
[1749291980362,0.6883,2493.9,2493.8,0.80156]
[1749291996171,0.75721172,2493.9,2493.8,0.80156]
[1749291999387,0.6883,2493.9,2493.8,0.80156]
[1749292000282,0.06891172,2493.9,2493.8,0.80156]
[1749292000786,0.06891172,2493.9,2493.8,2.15486]
[1749292000981,0.06891172,2493.9,2493.8,2.79846]
[1749292004980,0.0060119,2494.1,2494.0,0.8015]
[1749292005184,0.0060119,2494.1,2494.0,4.0093]
[1749292005684,0.0060119,2494.1,2494.0,5.3848]
[1749292009190,0.633,2494.5,2494.4,0.80137]
[1749292009388,3.2078,2494.9,2494.8,0.80124]
[1749292009585,2.045,2495.1,2494.9,0.80118]
[1749292009786,1.06327652,2495.0,2494.9,0.80118]
[1749292011384,2.84616,2495.1,2495.0,0.80118]
[1749292011584,3.90860024,2495.1,2495.0,0.80118]
[1749292012887,0.80119,2495.0,2494.9,0.80119]
[1749292013895,0.80119,2495.0,2494.7,3.2078]
[1749292013896,0.80122,2494.9,2494.8,0.80122]
[1749292014086,1.47072,2494.9,2494.8,0.80122]
[1749292014889,0.80124,2494.8,2494.7,4.00905]
[1749292015084,1.47073,2494.9,2494.8,0.80124]
[1749292015992,0.80124,2494.8,2494.4,3.2078]
[1749292016193,0.80124,2494.8,2494.7,0.80127]
[1749292017583,0.80124,2494.8,2494.6,4.729]
[1749292017584,0.6695,2494.9,2494.4,3.8933]
[1749292017788,0.80128,2494.7,2494.6,0.80128]
[1749292017990,0.80125,2494.8,2494.7,0.80125]
[1749292018995,2.18565,2494.8,2494.7,0.80125]
[1749292019890,0.80131,2494.6,2494.5,5.53031]
[1749292020092,0.80131,2494.6,2494.5,0.80131]
[1749292020586,1.47061,2494.6,2494.5,0.80131]
[1749292021090,0.6693,2494.6,2494.5,0.80131]
[1749292024596,0.73821172,2494.6,2494.5,0.80131]
[1749292029500,0.73821172,2494.6,2494.3,5.53039]
[1749292029705,0.80137,2494.4,2494.3,5.53039]
[1749292030001,2.13056,2494.5,2494.3,5.53039]
[1749292030393,2.13056,2494.5,2494.4,0.80137]
[1749292030999,0.80137,2494.4,2494.3,4.729]
[1749292031305,1.3959,2494.4,2494.3,0.8014]
[1749292032097,2.19727,2494.4,2494.3,0.8014]
[1749292032298,1.3959,2494.4,2494.3,0.8014]
[1749292033397,2.19727,2494.4,2494.3,0.8014]
[1749292033701,1.3959,2494.4,2494.3,0.8014]
[1749292034602,0.80136,2494.5,2494.4,0.80137]
[1749292036601,1.86468906,2494.5,2494.4,0.80137]
[1749292036806,1.86468906,2494.5,2494.3,0.80139]
[1749292036807,1.06332906,2494.5,2494.3,0.80139]
[1749292036999,0.80136,2494.5,2494.3,0.80139]
[1749292038103,1.53954172,2494.6,2494.5,0.80134]
[1749292038306,0.80134,2494.5,2494.4,0.80135]
[1749292040906,0.87025172,2494.5,2494.4,0.80135]
[1749292041409,0.06891172,2494.5,2494.4,0.80135]
[1749292041602,0.87025172,2494.5,2494.4,0.80135]
[1749292043810,0.80139,2494.4,2494.3,0.80138]
[1749292047912,0.87027172,2494.5,2494.4,0.80137]
[1749292048310,0.80138,2494.4,2494.3,0.80138]
[1749292051716,0.87027172,2494.5,2494.4,0.80137]
[1749292051910,1.93386023,2494.5,2494.4,0.80137]
[1749292052908,1.13250023,2494.5,2494.4,0.80137]
[1749292053618,1.93384023,2494.5,2494.4,0.80137]
[1749292055406,1.13250023,2494.5,2494.4,0.80137]
[1749292056415,1.13250023,2494.5,2494.4,1.49227]
[1749292058911,1.93384023,2494.5,2494.4,1.49227]
[1749292059111,1.13250023,2494.5,2494.4,1.49227]
[1749292059308,1.13250023,2494.5,2494.4,0.80137]
[1749292059513,1.93384023,2494.5,2494.4,0.80137]
[1749292060613,0.80139,2494.4,2494.3,0.80137]
[1749292060813,1.86497851,2494.4,2494.3,0.80137]
[1749292062718,1.06358851,2494.4,2494.3,0.80137]
[1749292063921,0.87025172,2494.5,2494.4,0.80137]
[1749292064121,1.93569162,2494.5,2494.4,0.80137]
[1749292064623,1.13435162,2494.5,2494.4,0.80137]
[1749292065309,0.06891172,2494.5,2494.4,5.52637]
[1749292078427,0.6832,2494.9,2494.8,0.80124]
[1749292078729,0.6832,2494.9,2494.8,4.00904]
[1749292079038,0.6832,2494.9,2494.8,8.73004]
[1749292083733,0.6318,2495.1,2495.0,0.80118]
[1749292084031,1.3149,2495.1,2495.0,0.80118]
[1749292085326,0.0060119,2495.2,2495.1,0.80114]
[1749292085633,0.0060119,2495.2,2495.1,4.00894]
[1749292087932,1.9e-06,2495.2,2495.1,4.00894]
[1749292088526,1.9e-06,2495.2,2495.1,4.65354]
[1749292091146,1.9e-06,2495.2,2495.1,6.05284]
[1749292091742,0.6967,2495.9,2495.8,0.80092]
[1749292091955,0.6967,2495.9,2495.8,4.00872]
[1749292092947,4.00847,2496.6,2496.4,0.8007]
[1749292093147,1.3945,2496.5,2495.9,3.40153]
[1749292093340,2.7721,2496.5,2496.4,0.80073]
[1749292093844,7.7721,2496.5,2496.3,0.80074]
[1749292094044,1.362,2496.4,2496.3,0.80074]
[1749292094448,6.362,2496.4,2496.3,0.80074]
[1749292095745,1.362,2496.4,2496.3,0.80074]
[1749292096539,1.3945,2496.5,2496.4,0.80073]
[1749292096941,2.7565,2496.5,2496.4,0.80073]
[1749292098148,7.7565,2496.5,2496.3,0.80074]
[1749292098349,1.3657,2496.4,2496.3,0.80074]
[1749292098550,0.80079,2496.3,2496.1,0.80081]
[1749292098852,1.3657,2496.2,2496.1,0.80081]
[1749292099447,0.80093,2495.8,2495.7,0.80095]
[1749292099651,11.57554,2496.2,2495.8,0.80092]
[1749292099652,3.2078,2495.9,2495.8,0.80092]
[1749292100043,4.00869,2495.9,2495.8,0.80092]
[1749292100243,5.39019,2495.9,2495.8,0.80092]
[1749292100643,4.5893,2495.9,2495.8,0.80092]
[1749292100843,1.3815,2495.9,2495.8,0.80092]
[1749292102858,1.3815,2495.9,2495.6,0.0060119]
[1749292103148,0.80095,2495.7,2495.6,0.0060119]
[1749292103540,5.80095,2495.7,2495.6,0.0060119]
[1749292103949,3.2078,2496.2,2495.6,0.0060119]
[1749292104152,0.80087,2496.0,2495.8,0.8009]
[1749292104352,1.3759,2495.9,2495.8,0.80092]
[1749292104955,2.17679,2495.9,2495.8,0.80092]
[1749292105459,1.3759,2495.9,2495.8,0.80092]
[1749292105648,0.6506,2496.1,2496.0,0.80086]
[1749292106053,2.82732,2496.1,2495.9,0.80087]
[1749292106255,2.0265,2496.1,2496.0,0.80086]
[1749292106851,2.82732,2496.1,2496.0,0.80086]
[1749292107251,2.0265,2496.1,2496.0,0.80086]
[1749292107459,2.82734,2496.1,2496.0,0.80086]
[1749292107852,0.80087,2496.0,2495.9,0.80087]
[1749292108056,2.19707,2496.0,2495.9,0.80087]
[1749292108254,1.3962,2496.0,2495.8,0.8009]
[1749292108454,1.3962,2495.9,2495.6,7.9288119]
[1749292108752,2.19709,2495.9,2495.8,0.80092]
[1749292109360,1.3962,2495.9,2495.8,0.80092]
[1749292110363,2.19709,2495.9,2495.8,0.80092]
[1749292110758,1.3962,2495.9,2495.8,0.80092]
[1749292112660,0.80086,2496.0,2495.9,0.80089]
[1749292113162,0.80088,2496.0,2495.9,0.80089]
[1749292113363,1.3846,2496.0,2495.6,4.7210119]
[1749292113564,1.3846,2496.0,2495.8,0.8009]
[1749292113767,0.8009,2495.9,2495.8,0.80091]
[1749292114462,2.18548,2496.0,2495.8,0.80091]
[1749292114665,0.6984,2495.9,2495.8,0.80091]
[1749292115862,0.80093,2495.8,2495.7,0.80094]
[1749292116162,1.56822172,2495.9,2495.8,0.80092]
[1749292116755,0.76731172,2495.9,2495.8,0.80092]
[1749292118463,1.56820172,2495.9,2495.8,0.80092]
[1749292121471,0.76731172,2495.9,2495.7,0.6695]
[1749292121766,1.56822172,2495.9,2495.8,0.80092]
[1749292126669,0.76731172,2495.9,2495.8,0.80092]
[1749292127268,1.56820172,2495.9,2495.8,0.80092]
[1749292129167,0.76731172,2495.9,2495.7,0.6695]
[1749292129371,0.80095,2495.7,2495.6,0.0060119]
[1749292131466,0.80095,2495.7,2495.6,0.6818119]
[1749292131772,0.80095,2495.7,2495.6,1.4827919]
[1749292131967,0.80095,2495.7,2495.6,0.6818119]
[1749292132368,4.71003,2495.8,2495.7,0.80095]
[1749292132570,0.80093,2495.8,2495.7,0.80095]
[1749292132771,0.86983172,2495.9,2495.7,2.15075]
[1749292132972,0.06891172,2495.9,2495.7,2.15075]
[1749292133170,0.06891172,2495.9,2495.8,2.15072]
[1749292133672,1.92832788,2495.9,2495.8,2.15072]
[1749292133975,1.12743788,2495.9,2495.8,2.15072]
[1749292134379,1.92832788,2495.9,2495.8,2.15072]
[1749292135078,1.12743788,2495.9,2495.8,2.15072]
[1749292135577,0.06891172,2495.9,2495.8,2.15072]
[1749292138072,0.86980172,2495.9,2495.8,2.15072]
[1749292138376,0.06891172,2495.9,2495.8,2.15072]
[1749292139179,0.86980172,2495.9,2495.8,2.15072]
[1749292140081,0.80092,2495.8,2495.7,5.51393]
[1749292140274,1.49692,2495.8,2495.7,5.51393]
[1749292140476,1.49692,2495.8,2495.7,0.80093]
[1749292140669,1.49693,2495.8,2495.7,0.80095]
[1749292141582,0.80095,2495.7,2495.6,0.0060119]
[1749292143977,1.43595,2495.7,2495.6,0.0060119]
[1749292144883,2.76395,2495.7,2495.6,0.0060119]
[1749292145279,2.83286172,2495.7,2495.6,0.0060119]
[1749292146177,3.89080401,2495.7,2495.6,0.0060119]
[1749292152889,2.56280401,2495.7,2495.6,0.0060119]
[1749292155002,2.56079613,2495.7,2495.6,0.0060119]
[1749292157204,5.76859613,2495.7,2495.6,0.0060119]
[1749292159308,2.56079613,2495.7,2495.6,0.0060119]
[1749292159510,5.76859613,2495.7,2495.6,0.0060119]
[1749292160408,5.76823771,2495.7,2495.6,0.0060119]
[1749292161811,7.08763771,2495.7,2495.6,0.0060119]
[1749292167111,0.80118,2495.0,2494.9,3.2078]
[1749292167312,0.80121,2494.9,2494.8,5.51521]
[1749292167512,0.8012,2495.0,2494.9,0.80119]
[1749292167712,0.8012,2495.0,2494.9,2.17519]
[1749292168313,0.8071419,2495.2,2495.1,0.80114]
[1749292168909,0.8071419,2495.2,2495.1,2.17514]
[1749292169717,0.0060119,2495.2,2495.1,2.17514]
[1749292169919,0.8071219,2495.2,2495.1,1.374]
[1749292170722,0.8071219,2495.2,2495.1,2.17514]
[1749292174018,0.0060119,2495.2,2495.1,2.17514]
[1749292175621,0.07492362,2495.2,2495.1,2.17514]
[1749292181624,0.07492362,2495.2,2495.1,5.38294]
[1749292197234,0.07492362,2495.2,2495.1,10.09394]
[1749292198834,0.07492362,2495.2,2495.1,8.71994]
[1749292200924,1e-08,2495.2,2495.1,10.07614]
[1749292201129,0.66,2495.6,2495.5,0.80102]
[1749292201333,0.66,2495.6,2495.5,5.50902]
[1749292205039,0.72891172,2495.6,2495.5,5.50902]
[1749292214345,1.52989172,2495.6,2495.5,0.80102]
[1749292214651,1.52989172,2495.6,2495.5,5.50902]
[1749292215343,0.72891172,2495.6,2495.5,5.50902]
[1749292216250,1.52989172,2495.6,2495.5,5.50902]
[1749292216449,1.52989172,2495.6,2495.4,4.00882]
[1749292216450,0.80102,2495.5,2495.4,4.00882]
[1749292216845,2.12462,2495.5,2495.4,4.00882]
[1749292217447,1.3236,2495.5,2495.4,4.00882]
[1749292217650,0.72891172,2495.6,2495.5,0.80102]
[1749292218355,0.72891172,2495.6,2495.5,5.50902]
[1749292219057,1.52989172,2495.6,2495.5,5.50902]
[1749292219258,1.46098,2495.6,2495.5,5.50902]
[1749292219557,0.66,2495.6,2495.5,5.50902]
[1749292219948,1.46098,2495.6,2495.5,5.50902]
[1749292220956,0.66,2495.6,2495.5,5.50902]
[1749292221748,1.46098,2495.6,2495.5,5.50902]
[1749292222458,0.66,2495.6,2495.5,5.50902]
[1749292223356,1.46098,2495.6,2495.5,5.50902]
[1749292223756,0.66,2495.6,2495.5,5.50902]
[1749292223954,1.46098,2495.6,2495.5,5.50902]
[1749292224458,0.66,2495.6,2495.5,5.50902]
[1749292224659,1.46098,2495.6,2495.5,6.16602]
[1749292224959,0.66,2495.6,2495.5,6.16602]
[1749292228660,0.7002,2495.7,2495.6,0.80098]
[1749292228963,0.6495,2496.0,2495.9,0.80089]
[1749292229164,2.37688308,2496.0,2495.9,0.80089]
[1749292230865,3.17774308,2496.0,2495.9,0.80089]
[1749292231663,2.37688308,2496.0,2495.9,0.80089]
[1749292231965,3.17774308,2496.0,2495.9,0.80089]
[1749292233267,2.12006,2496.0,2495.9,0.80089]
[1749292233465,1.3192,2496.0,2495.9,0.80089]
[1749292234465,1.38811172,2496.0,2495.9,0.80089]
[1749292234967,2.18897172,2496.0,2495.9,0.80089]
[1749292235259,1.38811172,2496.0,2495.9,0.80089]
[1749292236562,2.18897172,2496.0,2495.9,0.80089]
[1749292237167,1.38811172,2496.0,2495.9,0.80089]
[1749292237360,0.73861172,2496.0,2495.9,0.80089]
[1749292237761,0.73861172,2496.0,2495.9,2.10069]
[1749292238268,0.06891172,2496.0,2495.9,2.10069]
[1749292243869,0.06891172,2496.0,2495.9,0.80089]
[1749292244369,0.86977172,2496.0,2495.9,0.80089]
[1749292244670,0.80095,2495.7,2495.6,4.704]
[1749292244979,0.80102,2495.5,2495.4,4.00883]
[1749292245171,0.80102,2495.5,2495.4,3.2078]
[1749292245369,0.80105,2495.4,2495.3,5.50507]
[1749292245567,1.47685,2495.4,2495.3,5.50507]
[1749292246275,0.6758,2495.4,2495.3,0.80107]
[1749292246470,0.6758,2495.4,2495.1,3.2078]
[1749292246671,0.80109,2495.3,2495.2,0.80111]
[1749292247271,1.47687,2495.4,2495.2,0.80111]
[1749292247872,1.47687,2495.4,2495.3,0.80108]
[1749292248072,0.6758,2495.4,2495.3,0.80108]
[1749292249378,0.6758,2495.4,2495.2,0.8011]
[1749292249578,1.47685,2495.4,2495.2,0.8011]
[1749292250080,0.80108,2495.3,2495.2,0.8011]
[1749292250276,0.80108,2495.3,2495.1,0.80113]
[1749292250980,0.80111,2495.2,2495.1,0.80113]
[1749292251576,0.8011,2495.3,2495.1,0.80113]
[1749292251972,0.80111,2495.2,2495.0,5.2353]
[1749292252180,0.80111,2495.2,2495.0,6.03645]
[1749292252480,0.80113,2495.2,2495.0,6.03645]
[1749292252779,0.80113,2495.2,2495.1,0.80114]
[1749292253282,0.80113,2495.2,2495.0,6.03645]
[1749292253483,0.80114,2495.1,2495.0,4.66255]
[1749292253782,0.80113,2495.2,2495.0,4.66255]
[1749292254578,0.80113,2495.2,2495.1,0.80114]
[1749292254982,0.80114,2495.1,2495.0,1.45476]
[1749292256477,0.80114,2495.1,2495.0,5.3586]
[1749292257277,0.80114,2495.1,2495.0,4.705]
[1749292257676,0.80114,2495.1,2495.0,5.50618]
[1749292258284,0.80114,2495.1,2495.0,4.705]
[1749292258682,0.80124,2494.8,2494.7,0.8072719]
[1749292259481,0.80123,2494.9,2494.8,0.80124]
[1749292259685,0.80123,2494.9,2494.7,0.8072619]
[1749292259886,2.08831,2495.0,2494.9,0.80121]
[1749292260389,1.2871,2495.0,2494.9,0.80121]
[1749292262986,2.08828,2495.0,2494.9,0.80121]
[1749292263186,1.2871,2495.0,2494.9,0.80121]
[1749292264787,2.08828,2495.0,2494.9,0.80121]
[1749292265292,0.80121,2494.9,2494.7,0.0060119]
[1749292265693,0.80121,2494.9,2494.8,0.80122]
[1749292265889,2.0883,2495.0,2494.8,0.80122]
[1749292266195,2.15721172,2495.0,2494.8,0.80122]
[1749292266695,2.15721172,2495.0,2494.9,0.80121]
[1749292267489,2.15721172,2495.0,2494.7,1.3966119]
[1749292267793,2.15721172,2495.0,2494.9,0.80121]
[1749292268095,1.35601172,2495.0,2494.7,1.3966119]
[1749292268282,0.80121,2494.9,2494.8,0.80124]
[1749292268693,2.15720172,2495.0,2494.9,0.80121]
[1749292269594,0.80121,2494.9,2494.8,0.80122]
[1749292269896,2.15721172,2495.0,2494.9,0.80121]
[1749292271189,1.35601172,2495.0,2494.8,0.80122]
[1749292271492,0.80121,2494.9,2494.8,0.80122]
[1749292273096,0.80124,2494.8,2494.7,0.8072619]
[1749292273292,0.80124,2494.8,2494.7,0.0060119]
[1749292273293,4.00904,2494.8,2494.7,0.0060119]
[1749292274787,5.06330527,2494.8,2494.7,0.0060119]
[1749292275191,0.80143,2494.2,2494.1,4.702]
[1749292275393,5.21123,2494.4,2493.8,4.702]
[1749292275598,0.80153,2493.9,2493.8,4.702]
[1749292275792,1.3248,2494.3,2493.8,5.9809]
[1749292275994,0.80151,2494.0,2493.9,0.80152]
[1749292276297,0.8015,2494.0,2493.9,0.80151]
[1749292276499,0.0060119,2494.2,2493.8,5.9809]
[1749292276794,0.80151,2494.0,2493.9,0.80153]
[1749292276998,0.80151,2494.0,2493.8,2.08044]
[1749292277198,0.80153,2494.0,2493.8,6.78344]
[1749292277598,0.80153,2493.9,2493.8,6.78344]
[1749292277800,0.0060119,2494.2,2493.8,6.78344]
[1749292278099,0.80149,2494.1,2493.9,0.80153]
[1749292278294,0.8015,2494.0,2493.8,2.08045]
[1749292278492,0.80153,2493.9,2493.8,6.78345]
[1749292278695,0.80153,2493.9,2493.8,2.08045]
[1749292278893,0.80151,2494.0,2493.8,1.2789]
[1749292279299,1.2739119,2494.2,2493.8,5.9819]
[1749292279498,0.80152,2494.0,2493.8,5.50455]
[1749292280298,0.80152,2494.0,2493.8,0.80155]
[1749292280602,0.80155,2493.9,2493.8,4.703]
[1749292280797,1.44575,2493.9,2493.8,4.703]
[1749292281601,0.80156,2493.8,2493.7,0.0060119]
[1749292281996,0.80156,2493.8,2493.7,0.8076019]
[1749292282191,0.80156,2493.8,2493.7,0.0060119]
[1749292282697,0.80156,2493.8,2493.7,0.8076019]
[1749292283603,0.80156,2493.8,2493.7,0.0060119]
[1749292283803,1.48676,2493.8,2493.7,0.0060119]